Cogmind - Beta 13 *** ADVENTURER MODE // 2024.05.27 @ 01:05:29 Player: seifer8ff Result: Destroyed by S-27 Virus with Autogun Performance ------------- Evolutions (3) 1500 Regions Visited (5) 1000 Robots Destroyed (73) 365 Value Destroyed (2084) 2084 Prototype IDs (5) 100 Alien Tech Used (0) 0 Bonus (11) 11 TOTAL SCORE: 5060 Bonus ------- High Alert Combat Kills 11 Cogmind --------- Core Integrity 0/700 Matter 107/300 Energy 99/100 System Corruption 4% Temperature Cool (9) Movement Core (400) Ox7 Location -7/Storage Parts ------- > --- POWER (1) -------- (None) > --- PROPULSION (4) --- (None) > --- UTILITY (5) ------ Large Storage Unit Improved Signal Interpreter > --- WEAPON (3) ------- Hammer > --- INVENTORY (15) --- Improved Deuterium Engine Large Matter Pod (150) Improved Shield Generator Recalibrator EM Pulse Cannon Peak State ------------ > --- POWER ------------ Improved Deuterium Engine > --- PROPULSION ------- Improved Hover Unit Aerolev Unit Aerolev Unit Gravmag System > --- UTILITY ---------- Improved Cooling System Large Storage Unit Weight Redist. System Improved Signal Interpreter Kinecellerator > --- WEAPON ----------- Improved EM Pulse Cannon Gauss Rifle Gauss Cannon > --- INVENTORY -------- Improved Ion Engine Deuterium Engine Carbon-fiber Leg VSS Leg Small Battery Large Matter Pod Sensor Array Light Armor Plating Improved Shield Generator Recalibrator EM Pulse Cannon Heavy Assault Rifle Heavy Missile Launcher Hammer [Rating: 47] Favorites ----------- Power Ion Engine Engine Ion Engine Power Core Nuclear Core Propulsion Aerolev Unit Leg Aluminum Leg Hover Unit Aerolev Unit Flight Unit Xenon Bombardment Thruster Utility Large Storage Unit Device Sensor Array Storage Large Storage Unit Processor Improved Signal Interpreter Protection Light Armor Plating Weapon EM Pulse Cannon Energy Gun EM Pulse Gun Energy Cannon EM Pulse Cannon Ballistic Gun Gauss Rifle Ballistic Cannon Gauss Cannon Launcher Heavy Missile Launcher Impact Weapon Hammer Build | -11 -10 -9 -8 -7 -7 ------- Run | Yrd Mat Mat Mat Fac Sto Slots Evolved 6 | . . 2 2 2 . Power . | . . . . . . Propulsion 2 | . . 1 . 1 . Utility 3 | . . 1 1 1 . Weapon 1 | . . . 1 . . Parts Attached 74 | 9 1 18 19 26 1 Power 8 | 2 . 1 2 3 . Engine 7 | 2 . 1 1 3 . Core 1 | . . . 1 . . Reactor . | . . . . . . Propulsion 20 | 2 . 6 4 8 . Treads . | . . . . . . Leg 5 | 2 . 1 . 2 . Wheel . | . . . . . . Hover 14 | . . 5 3 6 . Flight 1 | . . . 1 . . Utility 26 | 3 . 4 9 9 1 Device 14 | 2 . 3 3 5 1 Storage 7 | 1 . 1 3 2 . Processor 3 | . . . 2 1 . Hackware . | . . . . . . Protection 2 | . . . 1 1 . Artifact . | . . . . . . Weapon 20 | 2 1 7 4 6 . Energy Gun 5 | 2 1 1 . 1 . Energy Cannon 4 | . . 2 1 1 . Ballistic Gun 7 | . . 3 3 1 . Ballistic Cannon 1 | . . . . 1 . Launcher 1 | . . . . 1 . Special Weapon . | . . . . . . Impact Weapon 2 | . . 1 . 1 . Slashing Weapon . | . . . . . . Piercing Weapon . | . . . . . . Special Melee Weapon . | . . . . . . Unidentified Prototypes . | . . . . . . Parts Lost 25 | . . 1 2 17 5 Power 3 | . . . . 2 1 Propulsion 9 | . . 1 . 6 2 Utility 7 | . . . 1 4 2 Weapon 6 | . . . 1 5 . Highest Loss Streak 15 | . . 1 1 15 5 To Critical Strikes . | . . . . . . Average Slot Usage (%) 93 | . 100 98 98 89 58 Engine 8 | . 14 11 4 6 6 Core 1 | . . . 4 . . Leg 7 | . 28 9 . . 14 Hover 18 | . . 22 26 22 . Device 15 | . 14 15 11 19 14 Storage 12 | . 14 17 14 8 7 Processor 4 | . . . 9 7 7 Energy Gun 6 | . 28 5 . 2 . Energy Cannon 6 | . . 10 11 3 . Ballistic Gun 7 | . . 5 15 8 . Ballistic Cannon 1 | . . . . 4 . Naked Turns . | . . . . . . Heaviest Build 54 | 15 15 29 44 54 34 Greatest Support 38 | 20 20 33 23 38 27 Greatest Overweight (x) 9 | . . 3 7 9 7 Average Overweight (x) . | . . . 1 1 1 Largest Inventory Capacity 15 | 8 8 8 15 15 15 Average Capacity 12 | 7 8 8 14 15 15 Most Carried 15 | 6 8 8 15 15 5 Average Carried 10 | 2 7 7 13 14 4 Final Capacity 15 | 8 8 8 15 15 15 Final Carried 15 | 6 8 8 15 5 5 Class Distribution -------------------- 44% | Mutant 37% | Scavenger-Skirmisher 7% | Scavenger-Mutant 6% | Scavenger-Gunner 4% | Gunner Dominant Class ---------------- Mutant | -10/Materials Mutant | -9/Materials Scavenger-Skirmisher | -8/Materials Scavenger-Skirmisher | -7/Factory Mutant | -7/Storage Resources | -11 -10 -9 -8 -7 -7 ----------- Run | Yrd Mat Mat Mat Fac Sto Matter Collected 1570 | 348 100 378 311 351 82 Remotely 112 | 112 . . . . . Salvage Created 2799 | 137 85 828 778 889 82 Parts 150 | 11 7 39 50 42 1 Haulers Intercepted 1 | . . 1 . . . Recyclers Shooed 1 | . . 1 . . . Parts Field Recycled . | . . . . . . Retrieved Matter . | . . . . . . Parts Self-Destructed . | . . . . . . Prevented . | . . . . . . Kills | -11 -10 -9 -8 -7 -7 ------- Run | Yrd Mat Mat Mat Fac Sto Combat Hostiles Destroyed 42 | . 3 11 13 15 . Guns 7 | . . 3 1 3 . Cannons 22 | . . 7 12 3 . AOE 13 | . 3 1 . 9 . Classes Destroyed 14 | 3 2 5 1 3 . Worker 8 | 2 . 1 2 3 . Builder 1 | . . . . 1 . Tunneler 2 | 2 . . . . . Hauler 1 | . . 1 . . . Recycler 7 | 1 . 1 1 3 1 Mechanic 1 | . . . . 1 . Operator 3 | . . 1 1 1 . Watcher 8 | . 2 3 3 . . Swarmer 7 | . 3 . 4 . . Grunt 19 | . . 5 3 11 . Brawler 3 | . . 2 . 1 . Sentry 11 | . . 4 5 2 . Hunter 1 | . . . 1 . . Programmer 1 | . . . . 1 . Best Kill Streak 8 | 2 3 3 7 8 1 Combat Bots Only 5 | . 3 3 5 5 . Max Kills in Single Turn 5 | 1 3 1 1 5 1 Gunslinging . | . . . . . . Exploded 3 | . 3 1 . 3 . Melee . | . . . . . . Uniques/NPCs Destroyed . | . . . . . . Combat | -11 -10 -9 -8 -7 -7 -------- Run | Yrd Mat Mat Mat Fac Sto Hostile Shots Fired 434 | . 12 50 53 286 33 Missed 120 | . 4 18 12 79 7 Damage Taken 3423 | . 89 349 380 2264 341 Core 824 | . 17 38 61 591 117 Absorbed by Shields . | . . . . . . Ignored by Resistances 1027 | . 28 105 110 682 102 Regen/Repaired (Parts) 117 | . . . . 117 . Core Remaining (%) 92 | 100 93 90 88 . . Volleys Fired 118 | 10 9 33 26 40 . Largest 3 | 2 2 2 3 3 . Hottest 149 | 80 80 126 149 145 . Shots Fired 285 | 20 18 62 75 110 . Gun 176 | 20 18 31 38 69 . Cannon 103 | . . 31 37 35 . Launcher 6 | . . . . 6 . Special . | . . . . . . Kinetic 131 | . . 19 38 74 . Thermal 6 | . . 6 . . . Explosive 6 | . . . . 6 . Electromagnetic 142 | 20 18 37 37 30 . Robot Hit Streak 38 | 6 4 38 18 24 . Robot Miss Streak 3 | 1 2 1 2 3 . Penetration Max 1 | . . . 1 1 . Secondary Targets . | . . . . . . Shots Hit Robots 186 | 13 10 47 42 73 1 Core Hits 100 | 6 4 22 23 45 . Critical Kills . | . . . . . . Critical Parts Destroyed 1 | . . . . 1 . Critical Strikes 3 | . 1 . . 2 . Destroy 1 | . . . . 1 . Blast 1 | . . . . 1 . Corrupt 1 | . 1 . . . . Melee Attacks 1 | . . . . . 1 Impact 1 | . . . . . 1 Slashing . | . . . . . . Piercing . | . . . . . . Sneak Attacks 1 | . . . . . 1 Combat Hostiles . | . . . . . . Follow-up Attacks . | . . . . . . Damage Inflicted 5966 | 166 251 1172 1162 3151 64 Guns 1776 | 166 179 298 280 853 . Cannons 2290 | . . 751 824 715 . Explosions 1832 | . 72 119 58 1583 . Melee 64 | . . . . . 64 Ramming 4 | . . 4 . . . Kinetic 1623 | . . 174 280 1169 . Thermal 1310 | . 72 178 58 1002 . Explosive 581 | . . . . 581 . Electromagnetic 2384 | 166 179 816 824 399 . Impact 64 | . . . . . 64 Slashing . | . . . . . . Piercing . | . . . . . . Highest Corruption 4 | . . . . 3 4 Average Corruption 2 | . . . . 1 3 Corruption Purged 1 | . . . . 1 . Corruption Blocked . | . . . . . . Effects 9 | . . . . 7 2 Message Errors 1 | . . . . . 1 Matter Fused 5 | . . . . 5 . Heat Flow Errors 2 | . . . . 1 1 Alerts 1 | . . . . 1 . Overload Shots . | . . . . . . Overflow Damage 288 | . 12 39 32 171 34 Projectiles 58 | . . 39 19 . . Explosions 196 | . 12 . 13 171 . Melee 34 | . . . . . 34 Knockbacks 4 | . . . . 4 . Impact . | . . . . . . Kinetic 4 | . . . . 4 . Secondary . | . . . . . . Self-Inflicted Damage 178 | . 31 28 . 119 . Shots 6 | . 1 1 . 4 . Rammed 2 | . . 2 . . . Targets Rammed 2 | . . 2 . . . Kicked . | . . . . . . Crushed . | . . . . . . Highest Temperature 411 | 72 48 212 285 411 146 Average Temperature 82 | 26 15 51 78 152 80 Received Heat Transfer 1755 | . . 186 153 1389 27 Effects 1 | . . . . 1 . Matter Decay 1 | . . . . 1 . Siege Activations . | . . . . . . Robots Corrupted . | . . . . . . Combat Hostiles . | . . . . . . Parts Fried 10 | . 2 5 1 . 2 Impact Corruptions 1 | . . . . . 1 Robots Melted . | . . . . . . Combat Hostiles . | . . . . . . Parts Melted 1 | . 1 . . . . Heat Transferred 1298 | . 150 298 100 750 . Parts Sabotaged . | . . . . . . Parts Stolen . | . . . . . . Parts Stripped . | . . . . . . Power Chain Reactions 6 | . 1 3 1 1 . Alert | -11 -10 -9 -8 -7 -7 ------- Run | Yrd Mat Mat Mat Fac Sto Peak Influence 428 | 25 224 226 428 340 103 Initial 113 | . 13 8 75 113 103 Average 157 | 7 132 112 256 162 100 Maximum Alert Level 2 | . 1 1 2 1 . Low Security (%) 60 | 100 64 74 22 63 100 Level 1 38 | . 35 25 72 36 . Level 2 1 | . . . 5 . . Level 3 . | . . . . . . Level 4 . | . . . . . . Level 5 . | . . . . . . High Security . | . . . . . . Max Security . | . . . . . . Squads Dispatched 6 | . 1 1 . 4 . Investigation 3 | . 1 . . 2 . Extermination 1 | . . . . 1 . Reinforcement 2 | . . 1 . 1 . Assault . | . . . . . . Garrison . | . . . . . . Intercept . | . . . . . . Searches Triggered . | . . . . . . Construction Impeded 1 | . . . . 1 . Haulers Reinforced . | . . . . . . Active Scanning Responses . | . . . . . . Cargo Convoy Interrupts . | . . . . . . Stealth | -11 -10 -9 -8 -7 -7 --------- Run | Yrd Mat Mat Mat Fac Sto Distress Signals 6 | . . 1 2 2 1 Communications Jammed . | . . . . . . Distress Signals . | . . . . . . Times Spotted 69 | . 7 15 19 23 5 Peak Tracking Total 8 | . 3 3 4 8 5 Tactical Retreats . | . . . . . . Traps | -11 -10 -9 -8 -7 -7 ------- Run | Yrd Mat Mat Mat Fac Sto Traps Triggered 6 | . 1 . . 3 2 Indirectly . | . . . . . . Trap Hack Attempts . | . . . . . . Triggered . | . . . . . . Disarmed . | . . . . . . Reprogrammed . | . . . . . . Reused . | . . . . . . Traps Extracted . | . . . . . . Installed . | . . . . . . Triggered . | . . . . . . Machines | -11 -10 -9 -8 -7 -7 ---------- Run | Yrd Mat Mat Mat Fac Sto Machines Disabled 14 | . . 1 . 13 . Max in Single Turn 8 | . . 1 . 8 . Machines Repaired . | . . . . . . Machines Dismantled . | . . . . . . Machines Sabotaged . | . . . . . . Overloaded Fab Kills . | . . . . . . Hacking | -11 -10 -9 -8 -7 -7 --------- Run | Yrd Mat Mat Mat Fac Sto Machines Accessed 13 | . 4 5 2 1 1 Terminals 8 | . 2 3 2 . 1 Fabricators . | . . . . . . Repair Stations 1 | . . . . 1 . Recycling Units 3 | . 2 1 . . . Scanalyzers 1 | . . 1 . . . Garrison Access . | . . . . . . Total Hacks 31 | . 9 12 3 5 2 Successful 13 | . 4 4 1 4 . Failed 18 | . 5 8 2 1 2 Catastrophic . | . . . . . . Database Lockouts . | . . . . . . Manual . | . . . . . . Terminals 18 | . 5 8 3 . 2 Fabricators . | . . . . . . Repair Stations 5 | . . . . 5 . Recycling Units 5 | . 4 1 . . . Scanalyzers 3 | . . 3 . . . Garrison Access . | . . . . . . Terminal Hacks 5 | . 2 2 1 . . Robot Analysis 1 | . . . 1 . . Prototype ID Bank 2 | . 1 1 . . . Emergency Access Points 1 | . 1 . . . . Unreport Threat 1 | . . 1 . . . Fabricator Hacks . | . . . . . . Repair Station Hacks 4 | . . . . 4 . Scan Component 2 | . . . . 2 . Repair 2 | . . . . 2 . Recycling Unit Hacks 2 | . 2 . . . . Report Inventory 2 | . 2 . . . . Scanalyzer 2 | . . 2 . . . Insert Component 1 | . . 1 . . . Analyze 1 | . . 1 . . . Garrison Access Hacks . | . . . . . . Unauthorized Hacks . | . . . . . . Terminals . | . . . . . . Fabricators . | . . . . . . Repair Stations . | . . . . . . Recycling Units . | . . . . . . Scanalyzers . | . . . . . . Garrison Access . | . . . . . . Data Cores Recovered 3 | . . 1 1 1 . Used 1 | . . 1 . . . Hacking Detections 8 | . 3 3 . 1 1 Full Trace Events 1 | . . . . 1 . Feedback Events . | . . . . . . Feedback Blocked . | . . . . . . Robot Schematics Acquired . | . . . . . . Robots Built . | . . . . . . Authchips . | . . . . . . Time . | . . . . . . Total Robot Build Rating . | . . . . . . Part Schematics Acquired 1 | . . 1 . . . Parts Built . | . . . . . . Authchips . | . . . . . . Time . | . . . . . . Total Part Build Rating . | . . . . . . Parts Repaired 2 | . . . . 2 . Time 120 | . . . . 120 . Parts Recycled . | . . . . . . Recycled Matter . | . . . . . . Retrieved Matter . | . . . . . . Retrieved Components . | . . . . . . Parts Scanalyzed 1 | . . 1 . . . Part Schematics Acquired 1 | . . 1 . . . Parts Damaged . | . . . . . . Bothacking | -11 -10 -9 -8 -7 -7 ------------ Run | Yrd Mat Mat Mat Fac Sto Used RIF Installer . | . . . . . . Robots Hacked . | . . . . . . Non-combat . | . . . . . . Combat . | . . . . . . Robot Hacks Applied . | . . . . . . Relay Couplers Released . | . . . . . . Fabnet Peak Effective % . | . . . . . . Robots Rewired . | . . . . . . Allies Hacked . | . . . . . . Hacks Repelled . | . . . . . . Allies | -11 -10 -9 -8 -7 -7 -------- Run | Yrd Mat Mat Mat Fac Sto Total Allies . | . . . . . . Largest Group . | . . . . . . Highest-Rated Group . | . . . . . . Highest-Rated Ally . | . . . . . . Total Orders . | . . . . . . Ally Attacks . | . . . . . . Total Damage . | . . . . . . Kills . | . . . . . . Allies Corrupted . | . . . . . . Allies Melted . | . . . . . . Intel | -11 -10 -9 -8 -7 -7 ------- Run | Yrd Mat Mat Mat Fac Sto Robot Analysis Total 1 | . . . 1 . . Derelict Logs Recovered . | . . . . . . Drone Launches . | . . . . . . Drone Recoveries . | . . . . . . Exploration | -11 -10 -9 -8 -7 -7 ------------- Run | Yrd Mat Mat Mat Fac Sto Turns Passed 3123 | 119 465 677 677 1009 176 Spaces Moved 2027 | 60 355 450 473 603 86 Core 17 | 8 . . . 7 2 Treads . | . . . . . . Legs 657 | 52 355 136 . 30 84 Wheels . | . . . . . . Hover 1350 | . . 314 470 566 . Flight 3 | . . . 3 . . Fastest Speed 50 | 50 120 105 105 103 185 Average Speed 114 | 110 120 109 108 110 190 Slowest Speed 600 | 120 120 250 600 500 400 Overloaded Moves . | . . . . . . Propulsion Burnouts . | . . . . . . Robots Hopped . | . . . . . . Cave-ins Triggered . | . . . . . . Exploration Rate (%) 25 | 4 42 42 33 13 18 Regions Visited 5 Branch Regions 1 Pre-discovered Areas . | . . . . . . Known Exits Taken 1 | . . . 1 . . Unknown Exits Taken 4 | 1 1 1 . 1 . Scrap Searched . | . . . . . . Spaces Dug . | . . . . . . Terrain Destroyed 122 | . 2 6 5 109 . Melee . | . . . . . . Projectile 7 | . . . . 7 . AOE 115 | . 2 6 5 102 . Terrain Rammed . | . . . . . . Walls Destroyed . | . . . . . . Machines Disabled . | . . . . . . Actions | -11 -10 -9 -8 -7 -7 --------- Run | Yrd Mat Mat Mat Fac Sto Total 2582 | 92 377 573 583 857 100 Wait 243 | . 3 39 30 160 11 Move 2022 | 59 354 449 472 602 86 Hop . | . . . . . . Pick Up 57 | 13 6 12 19 6 1 Fast Attach 19 | . . 8 4 7 . Attach 27 | 8 . 2 4 12 1 Detach 1 | 1 . . . . . Swap 28 | 1 1 8 11 7 . Drop 51 | . 4 20 17 10 . Fire 118 | 10 9 33 26 40 . Melee 1 | . . . . . 1 Ram 2 | . . 2 . . . Kick . | . . . . . . Crush . | . . . . . . Escape Stasis 13 | . . . . 13 . Rewire . | . . . . . . Trap . | . . . . . . Miscellaneous . | . . . . . . Route ------- -11/Scrapyard -10/Materials (discovered 3 exits: *Mat / [*Min] / [*Sub]) -9/Materials -8/Materials -7/Factory -7/Storage History --------- Turn | Location | Event 3 | -11/Scrapyard | Discovered new exit (range 16) 120 | -11/Scrapyard | Entered Materials 321 | -10/Materials | Build established: Mutant 345 | -10/Materials | Discovered new exit (range 15) 557 | -10/Materials | Discovered new exit (range 15) 567 | -10/Materials | Discovered new exit (range 15) 585 | -10/Materials | Entered another Materials area 585 | -9/Materials | Evolved 2 slots: Propulsion x1, Utility x1 1158 | -9/Materials | Discovered new exit (range 16) 1262 | -9/Materials | Entered another Materials area 1262 | -8/Materials | Evolved 2 slots: Utility x1, Weapon x1 1597 | -8/Materials | Discovered new exit (range 11) 1938 | -8/Materials | Identified exit to Factory 1939 | -8/Materials | Entered Factory 1939 | -7/Factory | Evolved 2 slots: Propulsion x1, Utility x1 1981 | -7/Factory | Build established: Scavenger-Skirmisher 1982 | -7/Factory | Discovered new exit (range 16) 2390 | -7/Factory | Repaired Aerolev Unit 2451 | -7/Factory | Repaired Aerolev Unit 2881 | -7/Factory | Core integrity fell below 50% 2941 | -7/Factory | Lost 15 parts (2p4n4u5w) 2942 | -7/Factory | Core integrity fell below 20% 2948 | -7/Factory | Entered Storage 3121 | -7/Storage | Build established: Mutant 3124 | -7/Storage | Destroyed by S-27 Virus with Autogun Last Messages --------------- area. Acquired Imp. Deuterium Engine. System corrupted: Heat flow error (+171). K-01 Serf cleans the Storage Shell. UY0GQDCKK VOIC0OBA/4ZKT Connecting with Door Terminal... Current location identified: Storage Sensor Array destroyed. VSS Leg destroyed. Sneak attack on R-06 Scavenger. Destroyed Com. Wheel. R-06 Scavenger system corrupted by crushing effect. R-06 Scavenger system terminally corrupted. Tractor Beam fried. Com. Wheel fried. Deuterium Engine destroyed. Acquired 82 matter. Imp. Cooling System destroyed. Carbon-fiber Leg destroyed. Map ----- +----------------------------------------------------+ | ####### #??????????????????????????? | | # # #??????????????????????????? | | # #^^ #??????????????????????????? | | # """ # #??????????????????????????? | | # """ # #####+#########+#####??????? | | # """ # #??????? | | # + +??????? | | # """ # #??????? | | # """ # ########### #??????? | | # """ # # # #??????? | | # # # "??" + #??????? | | # # # "??"" ###### ##????????? | | # # # "???"" #????????????????? | | ####### + ""???" #????????????????? | | ??????# # ""??" #????????????????? | | ??????# # """" #????????????????? | | ??????# # #????????????????? | | ??????# ###########????????????????? | | ??????# #??????????????????????????? | | ??????# #??????????????????????????? | | ??????# #??????????????????????????? | | ??????# #??????????????????????????? | | ????### #??????????????????????????? | | ????" + #??????????????????????????? | | ????#T# ###############/###????????? | | ????### @ s ?????? | | ??????# w g ?????? | | ??????# s s ?????? | | ??????### """"T"""" ########T##??????? | | ????????#"""""""""""#????????????????? | | ????????#############????????????????? | | ?????????????????????????????????????? | | ?????????????????????????????????????? | | ?????????????????????????????????????? | | ?????????????????????????????????????? | | ?????????????????????????????????????? | | ?????????????????????????????????????? | | ?????????????????????????????????????? | | ?????????????????????????????????????? | | ?????????????????????????????????????? | | ?????????????????????????????????????? | | ?????????????????????????????????????? | | ?????????????????????????????????????? | | ?????????????????????????????????????? | | ?????????????????????????????????????? | | ?????????????????????????????????????? | | ?????????????????????????????????????? | | ?????????????????????????????????????? | | ?????????????????????????????????????? | | ?????????????????????????????????????? | +----------------------------------------------------+ Best States ------------- Heat Dissipation 61 Energy Generation 16 Energy Capacity 390 Matter Stores 300 Matter Capacity 300 Sight Range 16 Robot Scan Range 14 Terrain Scan Range 16 Terrain Scan Density 10 Additional Mass Support 6 Armor Coverage 150 Resistance: KI 20 Resistance: TH 20 Resistance: EX 20 Resistance: EM 20 Resistance: I 20 Resistance: S 20 Resistance: P 20 Evasion (%) 55 Kinecelleration 30 Offensive Hacking 10 Item Schematics ----------------- Imp. Ion Engine | -9/Materials | Scanalyzed Robot Schematics ------------------ None Fabricated ------------ Nothing Alien Tech Used ----------------- None Achievements -------------- Dynamic Key Use The Force Challenges ------------ None Game ------ Seed LightMasterLeg Manual? 0 Play Time 01:03:06 Cumulative 12.3 hours Start 2024.05.26 @ 16:25:30 End 2024.05.27 @ 01:05:29 Sessions 3 Manual Loads 0 Difficulty Adventurer Special Mode None Game No. 10 Rogue 0 Adventurer 10 Explorer 0 Win Type - Total 0 Types 0/0/0/0/0/0/0/0/0 Lore% 11 Gallery% 17 Achievement% 14 Wizard Run 0 Options --------- Layout 2 ASCII 0 Keyboard 0 Movement Mouse Keybinds 0 Fullscreen 1 Font 24/Smallcaps Map View 25x22 Zoom Use 96% Tactical HUD 0 Map Filters NONE Filters NONE Steam X RUN: c4723214-60cf-4464-84c4-39b6e40e7844